bitfinex/quotes_BTCUSD_20220307
["timestamp","ask_amount","ask_price","bid_price","bid_amount"]
[1646650743641,0.12421538,38093.0,38092.0,0.00079472]
[1646650743843,0.02491931,38093.0,38092.0,0.00079472]
[1646650745944,0.41981731,38093.0,38092.0,0.00079472]
[1646650746343,0.51981731,38093.0,38092.0,0.00079472]
[1646650746542,0.12491931,38093.0,38092.0,0.00079472]
[1646650746807,0.76981731,38093.0,38092.0,0.00079472]
[1646650747011,0.37491931,38093.0,38092.0,0.00079472]
[1646650747209,0.27491931,38093.0,38092.0,0.10812772]
[1646650747409,0.27491931,38093.0,38092.0,0.39569272]
[1646650748008,0.27491931,38093.0,38092.0,0.00079472]
[1646650748409,0.27491931,38093.0,38092.0,0.10069472]
[1646650748611,0.27491931,38093.0,38092.0,0.00079472]
[1646650750113,0.66981731,38093.0,38092.0,0.00079472]
[1646650750313,0.76981731,38093.0,38092.0,0.00079472]
[1646650751543,0.74560193,38093.0,38092.0,0.00079472]
[1646650751742,0.76831731,38093.0,38092.0,0.00079472]
[1646650752142,0.77531731,38093.0,38092.0,0.00079472]
[1646650753342,0.76831731,38093.0,38092.0,0.00079472]
[1646650753641,0.37341931,38093.0,38092.0,0.00079472]
[1646650753844,0.27341931,38093.0,38092.0,0.00079472]
[1646650754693,0.27341931,38093.0,38091.0,0.00599328]
[1646650755194,0.27341931,38093.0,38091.0,0.00579472]
[1646650755395,0.27341931,38093.0,38091.0,0.10569472]
[1646650756195,0.27541931,38093.0,38091.0,0.10569472]
[1646650756600,0.27541931,38093.0,38092.0,0.394898]
[1646650756798,0.25270393,38093.0,38092.0,0.394898]
[1646650756995,0.27541931,38093.0,38092.0,0.394898]
[1646650757395,0.24573691,38093.0,38092.0,0.494798]
[1646650758944,0.24642341,38093.0,38092.0,0.494798]
[1646650762199,0.24642341,38093.0,38092.0,0.0999]
[1646650763205,0.24642341,38093.0,38090.0,0.001]
[1646650763206,0.16742057,38091.0,38090.0,0.001]
[1646650763404,0.86231857,38091.0,38090.0,0.001]
[1646650763602,0.98503395,38091.0,38090.0,0.001]
[1646650764200,1.78423395,38091.0,38090.0,0.001]
[1646650764402,1.78408082,38091.0,38090.0,0.001]
[1646650764602,2.394098,38090.0,38088.0,0.002]
[1646650764802,2.394098,38090.0,38087.0,0.003]
[1646650764803,2.394098,38088.0,38087.0,0.002]
[1646650765203,2.693998,38088.0,38087.0,0.002]
[1646650765450,2.693998,38088.0,38073.0,0.002]
[1646650765451,0.82539,38086.0,38073.0,0.002]
[1646650765655,1.494098,38085.0,38073.0,0.002]
[1646650765853,1.594098,38085.0,38073.0,0.002]
[1646650766149,1.22619,38080.0,38073.0,0.002]
[1646650766360,0.96539,38076.0,38073.0,0.002]
[1646650766553,0.96539,38076.0,38069.0,0.001]
[1646650766554,0.82539,38072.0,38069.0,0.001]
[1646650766754,0.82539,38072.0,38056.0,0.2350202]
[1646650766755,1.2,38070.0,38056.0,0.3]
[1646650766952,1.2,38070.0,38050.0,0.5325]
[1646650766953,0.72037304,38069.0,38050.0,0.5325]
[1646650767155,0.19292995,38060.0,38050.0,0.1395]
[1646650767351,0.17072592,38063.0,38061.0,0.00021346]
[1646650767352,0.3,38062.0,38061.0,0.00021346]
[1646650767552,0.4,38062.0,38061.0,0.00021346]
[1646650767752,0.46813104,38062.0,38061.0,0.00021346]
[1646650767956,0.46813104,38062.0,38051.0,0.001]
[1646650767957,0.7992,38060.0,38051.0,0.001]
[1646650768153,0.02619,38057.0,38051.0,0.001]
[1646650768351,0.3,38058.0,38051.0,0.001]
[1646650768554,0.4522,38058.0,38051.0,0.001]
[1646650768752,0.02271538,38055.0,38034.0,0.15]
[1646650768960,0.02271538,38055.0,38031.0,0.01]
[1646650768961,1.394898,38052.0,38031.0,0.01]
[1646650769207,0.7982,38038.0,38031.0,0.01]
[1646650769405,0.00263158,38034.0,38032.0,0.71967871]
[1646650769601,0.1,38038.0,38033.0,0.3]
[1646650769803,0.20919916,38046.0,38033.0,0.3]
[1646650769804,0.20919916,38046.0,38036.0,0.394855]
[1646650770001,0.2499999,38046.0,38036.0,0.394855]
[1646650770206,0.2499999,38046.0,38039.0,0.27340808]
[1646650770403,0.2499999,38046.0,38045.0,0.0999]
[1646650771204,0.1896,38046.0,38045.0,0.0999]
[1646650772305,0.1896,38046.0,38045.0,0.494798]
[1646650772961,0.1896,38046.0,38045.0,0.0999]
[1646650772962,0.884498,38046.0,38045.0,0.0999]
[1646650773165,0.889498,38046.0,38045.0,0.0999]
[1646650773362,1.78896107,38046.0,38045.0,0.0001]
[1646650773561,0.29486307,38046.0,38045.0,0.0001]
[1646650773864,0.29486307,38046.0,38044.0,0.00022908]
[1646650773865,0.34583692,38046.0,38044.0,0.00022908]
[1646650774067,0.34583692,38046.0,38031.0,0.01]
[1646650774068,0.02619,38043.0,38031.0,0.01]
[1646650774265,0.005,38036.0,38031.0,0.01]
[1646650774462,0.4,38043.0,38031.0,0.01]
[1646650774463,0.1895,38032.0,38031.0,0.01]
[1646650774664,0.1895,38032.0,38031.0,0.118239]
[1646650775069,0.1895,38032.0,38031.0,0.01]
[1646650775567,0.1895,38032.0,38016.0,0.0522]
[1646650775568,1.594898,38028.0,38012.0,0.001]
[1646650775764,1.16516211,38013.0,38003.0,0.000332]
[1646650775967,0.005,38014.0,38003.0,0.000332]
[1646650775968,0.3522,38012.0,38003.0,0.000332]
[1646650776163,0.1,38012.0,38003.0,0.000332]
[1646650776376,0.1894,38007.0,38006.0,0.18428676]
[1646650776563,0.1894,38007.0,38006.0,0.46588135]
[1646650776819,0.1894,38007.0,38000.0,0.101]
[1646650776820,0.48966332,38007.0,38000.0,0.101]
[1646650777019,0.48966332,38007.0,38005.0,0.00020713]
[1646650777020,0.3,38006.0,38005.0,0.00020713]
[1646650777220,0.1894,38007.0,38005.0,0.00020713]
[1646650777419,0.1894,38007.0,38006.0,0.19845969]
[1646650777620,0.1,38010.0,38006.0,0.19845969]
[1646650778024,0.2499999,38014.0,38006.0,0.19845969]
[1646650778025,0.2499999,38014.0,38007.0,0.40676333]
[1646650778222,0.2499999,38014.0,38010.0,0.145]
[1646650778424,0.2499999,38014.0,38007.0,0.108557]
[1646650778425,0.0653474,38014.0,38013.0,0.253529]
[1646650778625,0.3,38027.0,38017.0,0.27066686]
[1646650778822,0.4869,38031.0,38019.0,0.2567179]
[1646650778823,0.3,38028.0,38019.0,0.2567179]
[1646650779027,0.01315,38031.0,38021.0,0.145]
[1646650779227,0.1,38042.0,38029.0,0.145]
[1646650779426,0.1,38042.0,38022.0,0.5]
[1646650779427,0.305,38044.0,38031.0,0.145]
[1646650779624,0.305,38044.0,38027.0,0.2499999]
[1646650779625,0.00020833,38040.0,38027.0,0.2499999]
[1646650779824,0.20479272,38034.0,38027.0,0.2499999]
[1646650780024,0.005,38036.0,38027.0,0.2499999]
[1646650780224,0.395337,38032.0,38027.0,0.2499999]
[1646650780454,0.005,38030.0,38027.0,0.2499999]
[1646650780645,0.005,38030.0,38026.0,0.004]
[1646650780646,0.395337,38029.0,38026.0,0.004]
[1646650780845,0.005,38031.0,38026.0,0.004]
[1646650781044,0.395337,38030.0,38026.0,0.004]
[1646650781351,0.395337,38030.0,38024.0,0.25396048]
[1646650781352,0.005,38027.0,38024.0,0.25396048]
[1646650781550,0.395337,38026.0,38024.0,0.2499999]
[1646650781744,0.1,38025.0,38019.0,0.2499999]
[1646650781944,0.395337,38024.0,38020.0,0.00377705]
[1646650782146,0.1,38025.0,38023.0,0.0999]
[1646650782345,0.1,38025.0,38021.0,0.17664078]
[1646650782745,0.1,38025.0,38024.0,0.0999]
[1646650782945,0.007,38027.0,38024.0,0.0999]
[1646650783149,0.002,38027.0,38025.0,0.108478]
[1646650783647,0.05,38028.0,38027.0,0.20643683]
[1646650783854,0.05,38028.0,38026.0,0.0999]
[1646650784296,0.05,38028.0,38026.0,0.10009864]
[1646650784692,0.1,38028.0,38026.0,0.10009864]
[1646650785291,0.1,38028.0,38026.0,0.0999]
[1646650785896,0.1,38028.0,38027.0,0.108464]
[1646650786092,0.1,38028.0,38027.0,0.108463]
[1646650786700,0.05,38028.0,38027.0,0.253463]
[1646650786896,0.05019239,38040.0,38027.0,0.331853]
[1646650787195,0.05019239,38040.0,38030.0,0.108443]
[1646650787396,0.05019239,38040.0,38032.0,0.145]
[1646650787595,0.05019239,38040.0,38035.0,0.16702288]
[1646650787800,0.05,38040.0,38037.0,0.108416]
[1646650788042,0.05,38040.0,38039.0,0.0985]
[1646650788245,0.05019241,38040.0,38039.0,0.0985]
[1646650788445,0.05019241,38040.0,38039.0,0.506907]
[1646650788647,0.05019241,38040.0,38039.0,0.559107]
[1646650788842,0.05019241,38040.0,38039.0,0.259107]
[1646650788843,0.00019241,38040.0,38039.0,0.259107]
[1646650789042,0.01385026,38049.0,38039.0,0.259107]
[1646650789245,0.01385026,38049.0,38045.0,0.17152722]
[1646650789543,0.05,38050.0,38045.0,0.17152722]
[1646650790143,0.065746,38049.0,38045.0,0.17152722]
[1646650790446,0.00019352,38049.0,38048.0,0.0984]
[1646650791344,0.05,38050.0,38048.0,0.0984]
[1646650791800,0.05019352,38050.0,38048.0,0.0984]
[1646650792600,0.05,38050.0,38048.0,0.0984]
[1646650793099,0.26438917,38038.0,38036.0,0.02638345]
[1646650793297,0.26438917,38038.0,38037.0,0.108401]
[1646650793597,0.26438917,38038.0,38037.0,0.160601]
[1646650793799,0.26438917,38038.0,38037.0,0.6742857]
[1646650794002,0.26438917,38038.0,38037.0,1.02068724]
[1646650794197,0.26438917,38038.0,38037.0,0.99449724]
[1646650794402,0.26438917,38038.0,38037.0,0.69449724]
[1646650794798,0.26438917,38038.0,38037.0,0.86568724]
[1646650795445,0.26438917,38038.0,38037.0,0.69449724]
[1646650796244,0.26438917,38038.0,38037.0,0.83949724]
[1646650796446,0.26438917,38038.0,38037.0,0.86568724]
[1646650796648,0.26438917,38038.0,38037.0,0.72068724]
[1646650796947,0.26438917,38038.0,38037.0,0.69449724]
[1646650797545,0.26438917,38038.0,38037.0,0.83949724]
[1646650798148,0.26438917,38038.0,38037.0,0.69369724]
[1646650799297,0.26438917,38038.0,38037.0,0.71988724]
[1646650800296,0.26438917,38038.0,38037.0,0.86488724]
[1646650800701,3.38e-06,38040.0,38039.0,0.02619]
[1646650801001,0.02314,38059.0,38045.0,1.22619]
[1646650801198,0.02314,38059.0,38049.0,0.133748]
[1646650801199,0.01,38059.0,38049.0,0.133748]
[1646650801397,0.01,38059.0,38050.0,0.3522]
[1646650801597,0.01,38059.0,38058.0,0.28223364]
[1646650802001,0.01,38059.0,38058.0,0.38213364]
[1646650802597,0.01,38059.0,38058.0,0.0999]
[1646650802598,0.00676713,38059.0,38058.0,0.0999]
[1646650802951,0.00676713,38059.0,38058.0,0.207418]
[1646650803545,0.00676713,38059.0,38058.0,0.75353838]
[1646650804747,0.00676713,38059.0,38058.0,0.1521]
[1646650804945,0.00676713,38059.0,38058.0,0.0999]
[1646650805145,0.00676713,38059.0,38058.0,0.207422]
[1646650807314,0.00676713,38059.0,38058.0,0.0999]
[1646650807315,0.40707413,38059.0,38058.0,0.0999]
[1646650807611,0.40707413,38059.0,38046.0,0.01312]
[1646650807612,1.22619,38058.0,38046.0,0.01312]
[1646650807810,0.005,38053.0,38043.0,0.1436]
[1646650808211,0.47273406,38052.0,38047.0,0.21561365]
[1646650808411,0.58331213,38052.0,38046.0,0.004]
[1646650809114,0.576545,38052.0,38049.0,0.10340558]
[1646650809313,0.526545,38052.0,38049.0,0.10340558]
[1646650809716,0.00676713,38050.0,38049.0,0.10340558]
[1646650811083,1.20127413,38050.0,38049.0,0.10340558]
[1646650811382,1.20127413,38050.0,38044.0,0.002]
[1646650811383,0.29527568,38048.0,38044.0,0.002]
[1646650811592,0.29527568,38048.0,38042.0,0.2499999]
[1646650811593,0.02619,38046.0,38042.0,0.2499999]
[1646650811784,0.02065284,38043.0,38042.0,0.2499999]
[1646650811983,0.53997116,38043.0,38042.0,0.2499999]
[1646650812182,0.01522383,38042.0,38041.0,0.0999]
[1646650812487,0.01522383,38042.0,38036.0,0.00020998]
[1646650812488,1.17619,38041.0,38036.0,0.00020998]
[1646650812683,0.2627361,38037.0,38036.0,0.00020998]
[1646650812885,0.2627361,38037.0,38034.0,0.2499999]
[1646650812886,0.82539,38036.0,38034.0,0.2499999]
[1646650813086,1.8353391,38035.0,38034.0,0.2499999]
[1646650813283,1.8353391,38035.0,38027.0,0.00399011]
[1646650813284,1.67372749,38035.0,38027.0,0.00399011]
[1646650813485,0.82539,38034.0,38027.0,0.00399011]
[1646650813684,0.25754282,38028.0,38027.0,0.00399011]
[1646650813886,0.47051996,38028.0,38027.0,0.00399011]
[1646650814084,0.47051996,38028.0,38025.0,0.2499999]
[1646650814085,0.77051996,38028.0,38025.0,0.2499999]
[1646650814314,0.3,38027.0,38025.0,0.2499999]
[1646650814515,0.3,38027.0,38023.0,0.00398959]
[1646650814516,0.83547807,38026.0,38023.0,0.00398959]
[1646650814714,0.37619,38025.0,38023.0,0.00398959]
[1646650814921,0.37960126,38024.0,38023.0,0.00398959]
[1646650815312,0.37960126,38024.0,38019.0,0.2519999]
[1646650815313,1.621497,38023.0,38019.0,0.2519999]
[1646650815515,1.621497,38023.0,38018.0,0.002]
[1646650815516,1.2,38019.0,38018.0,0.002]
[1646650815714,1.34,38019.0,38018.0,0.002]
[1646650815916,0.9392,38019.0,38018.0,0.001]
[1646650816113,1.2392,38019.0,38018.0,0.001]
[1646650816314,1.24896713,38019.0,38018.0,0.001]
[1646650816513,1.24896713,38019.0,38006.0,0.001]
[1646650816514,0.82539,38018.0,38009.0,0.1029]
[1646650816712,0.005,38012.0,38011.0,0.01399006]
[1646650817117,0.055,38012.0,38011.0,0.01399006]
[1646650817316,0.223595,38012.0,38011.0,0.01399006]
[1646650817716,0.223595,38012.0,38011.0,0.01]
[1646650817956,0.13331457,38012.0,38011.0,0.01]
[1646650819353,0.93251457,38012.0,38011.0,0.01]
[1646650819553,0.43331457,38012.0,38011.0,0.01]
[1646650820052,0.13331457,38012.0,38011.0,0.01]
[1646650820650,0.13331457,38012.0,38011.0,0.1099]
[1646650821051,0.43331457,38012.0,38011.0,0.1099]
[1646650821252,0.13331457,38012.0,38011.0,0.1099]
[1646650822307,0.06176713,38012.0,38011.0,0.1099]
[1646650822506,0.01176713,38012.0,38011.0,0.1099]
[1646650823108,0.01176713,38012.0,38010.0,0.00020997]
[1646650823310,0.22121994,38009.0,38008.0,0.001]
[1646650823507,0.22621994,38009.0,38008.0,0.001]
[1646650823909,0.22121994,38009.0,38008.0,0.001]
[1646650824109,0.22121994,38009.0,38008.0,0.108741]
[1646650824607,0.22121994,38009.0,38008.0,0.208641]
[1646650825008,0.22798707,38009.0,38008.0,0.208641]
[1646650825312,0.05,38015.0,38009.0,1.2]
[1646650825560,0.05,38015.0,38010.0,0.107745]
[1646650825753,0.05,38015.0,38014.0,0.17827834]
[1646650825955,0.05,38015.0,38008.0,0.001]
[1646650826153,0.05,38015.0,38009.0,0.107749]
[1646650826456,0.05925121,38014.0,38009.0,0.107748]
[1646650826655,0.05,38015.0,38009.0,0.107749]
[1646650826855,0.05,38015.0,38011.0,0.107742]
[1646650827054,0.05,38015.0,38008.0,0.00107835]
[1646650827055,0.005,38013.0,38008.0,0.00107835]
[1646650827260,0.395307,38012.0,38008.0,0.00107835]
[1646650827454,0.005,38009.0,38008.0,0.00107835]
[1646650827657,0.005,38009.0,38008.0,0.00128851]
[1646650828060,0.005,38009.0,38008.0,0.00121016]
[1646650828258,0.005,38009.0,38008.0,0.10896716]
[1646650828658,0.005,38009.0,38008.0,0.108757]
[1646650829055,0.05,38015.0,38010.0,0.16636404]
[1646650829056,0.055,38015.0,38010.0,0.16636404]
[1646650829311,0.055,38015.0,38014.0,0.20397076]
[1646650829312,0.05,38015.0,38014.0,0.20397076]
[1646650829506,0.05,38015.0,38014.0,0.31169976]
[1646650830309,0.05,38015.0,38014.0,0.107729]
[1646650830511,0.055,38015.0,38014.0,0.107729]
[1646650830719,0.05,38015.0,38014.0,0.107729]
[1646650831109,0.05,38015.0,38013.0,0.0999]
[1646650831309,0.005,38014.0,38013.0,0.0986]
[1646650831509,0.35482799,38014.0,38013.0,0.0986]
[1646650831709,0.40482799,38014.0,38013.0,0.0986]
[1646650831908,0.05490406,38011.0,38008.0,0.00121445]
[1646650832310,0.05490406,38011.0,38008.0,0.001]
[1646650832509,0.05990406,38011.0,38009.0,0.107745]
[1646650832709,0.005,38011.0,38008.0,0.0011978]
[1646650832959,0.005,38011.0,38009.0,0.107752]
[1646650833160,0.054,38014.0,38009.0,0.107752]
[1646650833361,0.004,38014.0,38009.0,0.107752]
[1646650833560,0.36,38015.0,38009.0,0.107752]
[1646650833561,0.1,38015.0,38009.0,0.107752]
[1646650834161,0.005,38014.0,38009.0,0.107752]
[1646650834462,0.05,38015.0,38008.0,0.00119779]
[1646650834663,0.28623019,38011.0,38008.0,0.001]
[1646650834864,0.07157059,38009.0,38008.0,0.00119779]
[1646650835662,0.005,38009.0,38008.0,0.00119779]
[1646650835865,0.005,38009.0,38008.0,0.108752]
[1646650836362,0.005,38009.0,38008.0,0.001]
[1646650836795,0.05,38015.0,38008.0,0.108757]
[1646650836996,0.005,38009.0,38008.0,0.108752]
[1646650837301,0.005,38011.0,38008.0,0.001]
[1646650837496,0.12279507,38013.0,38009.0,0.107752]
[1646650837697,0.005,38010.0,38008.0,0.001]
[1646650838000,0.005,38010.0,38009.0,0.10775]
[1646650838411,0.005,38011.0,38009.0,0.20615]
[1646650838796,0.005,38011.0,38009.0,0.0984]
[1646650839197,0.005,38011.0,38010.0,0.107749]
[1646650839397,0.005,38011.0,38009.0,0.0984]
[1646650839600,0.005,38011.0,38010.0,0.107748]
[1646650840197,0.005,38011.0,38009.0,0.0984]
[1646650840451,0.16365439,38011.0,38009.0,0.0984]
[1646650840651,0.055,38011.0,38009.0,0.0984]
[1646650840852,0.05,38011.0,38010.0,0.107749]
[1646650841056,0.05,38015.0,38010.0,0.107749]
[1646650841057,0.055,38015.0,38010.0,0.107749]
[1646650841453,0.10934679,38015.0,38010.0,0.107749]
[1646650841654,0.055,38015.0,38008.0,0.00118965]
[1646650841852,0.005,38014.0,38009.0,0.107748]
[1646650842053,0.05,38015.0,38009.0,0.107748]
[1646650842553,0.05,38015.0,38013.0,0.17378539]
[1646650842752,0.005,38014.0,38013.0,0.107733]
[1646650842951,0.055,38015.0,38013.0,0.107733]
[1646650843153,0.315,38015.0,38009.0,0.107746]
[1646650843352,0.005,38013.0,38010.0,0.107745]
[1646650843553,0.005,38013.0,38008.0,0.0995897]
[1646650843755,0.425806,38015.0,38009.0,0.20232585]
[1646650844204,0.425806,38015.0,38010.0,0.206146]
[1646650844405,0.365,38015.0,38010.0,0.206146]
[1646650844605,0.005,38014.0,38010.0,0.107746]
[1646650845006,0.005,38014.0,38013.0,0.0984]
[1646650845807,0.27590681,38014.0,38013.0,0.0984]
[1646650846107,0.27590681,38014.0,38009.0,0.20232585]
[1646650846312,0.27090681,38014.0,38009.0,0.30072585]
[1646650846508,0.005,38010.0,38009.0,0.30072585]
[1646650846708,0.005,38014.0,38009.0,0.40847185]
[1646650846909,0.005,38014.0,38009.0,0.30072585]
[1646650847309,0.005,38014.0,38010.0,0.107746]
[1646650847611,0.005,38014.0,38012.0,0.0984]
[1646650848257,0.005,38014.0,38009.0,0.20232585]
[1646650848858,0.005,38014.0,38009.0,0.30072585]
[1646650850455,0.06302675,38010.0,38009.0,0.30072585]
[1646650850653,0.66,38015.0,38009.0,0.206148]
[1646650850855,0.005,38014.0,38009.0,0.0984]
[1646650851054,0.66,38015.0,38009.0,0.0984]
[1646650851256,0.005,38014.0,38009.0,0.0984]
[1646650851701,0.665,38015.0,38009.0,0.2620734]
[1646650851902,0.42650971,38015.0,38009.0,0.2620734]
[1646650852103,0.42150971,38015.0,38009.0,0.2620734]
[1646650852304,0.005,38011.0,38009.0,0.2620734]
[1646650852507,0.005,38011.0,38010.0,0.107745]
[1646650852705,0.42150971,38015.0,38010.0,0.107745]
[1646650852706,0.355,38015.0,38010.0,0.107748]
[1646650852905,0.355,38015.0,38009.0,0.2620734]
[1646650853109,0.305,38015.0,38010.0,0.37901367]
[1646650853307,0.305,38015.0,38010.0,0.107745]
[1646650853505,0.305,38015.0,38012.0,0.107738]
[1646650853806,0.305,38015.0,38012.0,0.159938]
[1646650854007,0.055,38015.0,38013.0,0.0984]
[1646650854206,0.055,38015.0,38014.0,0.15993]
[1646650854604,0.055,38015.0,38014.0,0.25833]
[1646650855205,0.05,38015.0,38014.0,0.25833]
[1646650855651,0.05,38015.0,38014.0,0.1506]
[1646650855652,0.11313371,38015.0,38014.0,0.1506]
[1646650856050,0.11313371,38015.0,38009.0,0.107744]
[1646650856051,0.3012,38013.0,38009.0,0.107744]
[1646650856249,0.3512,38013.0,38006.0,0.0532]
[1646650856455,0.3512,38013.0,38009.0,0.003]
[1646650856456,0.22803301,38012.0,38009.0,0.003]
[1646650857050,0.3512,38013.0,38009.0,0.003]
[1646650857649,0.3512,38013.0,38006.0,0.001]
[1646650858151,0.3512,38013.0,38011.0,0.0999]
[1646650864277,0.3512,38013.0,38011.0,0.27471684]
[1646650865078,0.3512,38013.0,38011.0,0.57471684]
[1646650865289,0.3012,38013.0,38011.0,0.57471684]
[1646650865480,0.3012,38013.0,38012.0,0.3]
[1646650865679,0.3012,38013.0,38012.0,0.0999]
[1646650865881,0.3012,38013.0,38012.0,0.50404444]
[1646650866082,0.3012,38013.0,38012.0,0.55624444]
[1646650866479,0.3012,38013.0,38012.0,0.58243444]
[1646650866900,0.0512,38013.0,38012.0,0.58243444]
[1646650867106,0.1012,38013.0,38012.0,0.17829]
[1646650867301,0.0512,38013.0,38012.0,0.41727726]
[1646650867504,0.05,38017.0,38014.0,1.2]
[1646650867705,0.2499999,38020.0,38016.0,0.01594467]
[1646650867902,0.2499999,38020.0,38017.0,0.22839]
[1646650868102,0.2499999,38020.0,38019.0,0.12609]
[1646650868303,0.2499999,38020.0,38019.0,1.05832787]
[1646650868504,0.21217676,38035.0,38019.0,1.05832787]
[1646650868505,0.01315,38033.0,38022.0,0.01215811]
[1646650868706,0.01314,38038.0,38027.0,0.02619]
[1646650868904,0.01314,38038.0,38030.0,0.15]
[1646650869105,0.21217676,38043.0,38036.0,0.0999]
[1646650869405,0.25332523,38041.0,38037.0,0.0522]
[1646650870203,0.065754,38043.0,38037.0,0.0522]
[1646650870461,0.21916262,38041.0,38037.0,0.0522]
[1646650870656,0.21916262,38041.0,38039.0,0.0999]
[1646650871256,0.15795444,38040.0,38039.0,0.0999]
[1646650871456,0.21758158,38040.0,38039.0,0.0999]
[1646650871656,0.05962714,38040.0,38039.0,0.0999]
[1646650872056,0.065754,38043.0,38039.0,0.0999]
[1646650872260,0.00011581,38041.0,38039.0,0.0999]
[1646650873158,0.26011581,38041.0,38039.0,0.0999]
[1646650873359,0.36653875,38041.0,38036.0,0.15479706]
[1646650873560,0.31,38041.0,38039.0,0.0999]
[1646650876600,0.31,38041.0,38034.0,0.0522]
[1646650876601,1.35,38040.0,38034.0,0.0522]
[1646650876806,1.35,38040.0,38027.0,0.0522]
[1646650876807,0.01417434,38039.0,38027.0,0.0522]
[1646650877000,1.49371531,38040.0,38025.0,0.3021999]
[1646650877200,1.49371531,38040.0,38025.0,0.0522]
[1646650877201,0.18722379,38037.0,38025.0,0.0522]
[1646650877403,0.06776736,38030.0,38025.0,0.0522]
[1646650878249,0.00019292,38029.0,38025.0,0.0522]
[1646650878445,0.00019292,38029.0,38020.0,0.06085331]
[1646650878645,0.1694914,38028.0,38020.0,0.06085331]
[1646650879249,0.2194914,38028.0,38023.0,0.20423674]
[1646650879447,0.00019293,38026.0,38023.0,0.20423674]
[1646650880448,0.2194914,38028.0,38023.0,0.20423674]
[1646650880648,0.2194914,38028.0,38025.0,0.0999]
[1646650880850,0.00019401,38026.0,38023.0,0.20423674]
[1646650881450,0.00025434,38034.0,38023.0,0.20423674]
[1646650881707,0.00693768,38034.0,38023.0,0.20423674]
[1646650881908,0.00018863,38026.0,38023.0,0.20423674]
[1646650882411,0.00018863,38026.0,38025.0,0.0999]
[1646650883010,0.28961066,38030.0,38025.0,0.0999]
[1646650883209,0.28961066,38030.0,38023.0,0.20423674]
[1646650883409,0.12347901,38030.0,38028.0,0.0999]
[1646650883608,0.1601,38026.0,38023.0,0.20423674]
[1646650883811,0.2101,38026.0,38023.0,0.20423674]
[1646650884409,0.2101,38026.0,38024.0,0.0496]
[1646650884811,0.05,38026.0,38024.0,0.0496]
[1646650885011,0.21919016,38030.0,38024.0,0.0496]
[1646650885315,0.26919016,38030.0,38024.0,0.0496]
[1646650885555,0.00020415,38028.0,38024.0,0.0496]
[1646650885755,0.00020415,38028.0,38023.0,0.20423674]
[1646650886256,0.00020415,38028.0,38027.0,0.0495]
[1646650886458,0.0416208,38034.0,38027.0,0.1017]
[1646650886657,0.0416208,38034.0,38028.0,0.3]
[1646650886857,0.0416208,38034.0,38029.0,0.0522]
[1646650887057,0.0416208,38034.0,38031.0,0.0495]
[1646650887255,0.0468,38029.0,38027.0,0.0522]
[1646650891514,0.01399989,38036.0,38032.0,0.18740245]
[1646650892316,0.01399989,38036.0,38030.0,0.0522]
[1646650892516,0.20199503,38034.0,38030.0,0.0522]
[1646650893151,0.25199503,38034.0,38030.0,0.0522]
[1646650893551,0.78997868,38033.0,38027.0,0.005]
[1646650893751,0.131582,38031.0,38027.0,0.005]
[1646650893951,0.695334,38030.0,38027.0,0.005]
[1646650894149,0.234331,38029.0,38027.0,0.005]
[1646650894348,0.208141,38029.0,38020.0,0.05385331]
[1646650894549,0.2197797,38025.0,38022.0,0.003]
[1646650894747,0.23235191,38023.0,38022.0,0.003]
[1646650895150,0.34799436,38023.0,38022.0,0.003]
[1646650895349,0.95,38022.0,38020.0,0.05385331]
[1646650895549,0.34799436,38023.0,38020.0,0.05385331]
[1646650895753,0.395334,38022.0,38020.0,0.05385331]
[1646650895948,0.3,38021.0,38020.0,0.05385331]
[1646650896808,0.395334,38021.0,38020.0,0.05385331]
[1646650897006,0.695334,38021.0,38020.0,0.05385331]
[1646650897210,0.745334,38021.0,38020.0,0.15375331]
[1646650897809,0.585334,38021.0,38020.0,0.05385331]
[1646650898614,0.588334,38021.0,38015.0,0.002]
[1646650898814,0.588334,38021.0,38019.0,0.0999]
[1646650898815,1.2,38020.0,38019.0,0.0999]
[1646650899011,1.43590721,38020.0,38019.0,0.0999]
[1646650899211,0.77619,38019.0,38015.0,0.002]
[1646650899414,0.0916835,38018.0,38015.0,0.002]
[1646650899612,0.3,38017.0,38015.0,0.002]
[1646650899813,0.395334,38016.0,38012.0,0.87717104]
[1646650900013,0.51080785,38017.0,38012.0,0.87717104]
[1646650900221,0.495334,38016.0,38012.0,0.65760878]
[1646650900453,0.1,38016.0,38012.0,0.65760878]
[1646650900651,0.445334,38015.0,38012.0,0.65760878]
[1646650900853,0.35,38015.0,38012.0,0.65760878]
[1646650901056,0.15,38016.0,38012.0,0.65760878]
[1646650901253,0.53699785,38017.0,38012.0,0.65760878]
[1646650901254,0.26080785,38017.0,38012.0,0.65760878]
[1646650902053,0.28534364,38014.0,38012.0,0.65760878]
[1646650902254,0.05,38014.0,38012.0,0.65760878]
[1646650902455,0.08799785,38017.0,38012.0,0.65760878]
[1646650902657,0.395334,38016.0,38012.0,0.65760878]
[1646650902855,0.08799785,38017.0,38012.0,0.65760878]
[1646650903054,0.001,38017.0,38012.0,0.65760878]
[1646650903860,0.1,38018.0,38012.0,0.65760878]
[1646650904060,0.3,38017.0,38012.0,0.65760878]
[1646650904324,0.31,38017.0,38012.0,0.65760878]
[1646650905831,0.26,38017.0,38013.0,0.21934139]
[1646650906028,0.26,38017.0,38016.0,0.18199456]
[1646650906231,0.26,38017.0,38016.0,0.23419456]
[1646650906528,0.01399991,38023.0,38017.0,1.2]
[1646650906730,0.01399991,38023.0,38018.0,0.0522]
[1646650907126,0.01399991,38023.0,38022.0,0.0999]
[1646650907330,0.01399991,38023.0,38022.0,0.1521]
[1646650907726,0.01399991,38023.0,38022.0,0.0999]